[Event "28th WSCC Open 65 2018"]
[Site "Bled"]
[Date "2018.11.18"]
[Round "1"]
[White "Balashov, Yuri S"]
[Black "Valenti, Giuseppe"]
[Result "1-0"]
[ECO "A04"]
[WhiteElo "2445"]
[BlackElo "2003"]
[Annotator "ChessBase"]
[PlyCount "59"]
[EventDate "2018.11.17"]
[EventType "swiss"]
[EventCountry "SLO"]
[SourceTitle "playchess.com"]
[Source "ChessBase"]
[SourceQuality "1"]
[TimeControl "40/5400+30:1800+30"]

1. Nf3 {[%emt 0:00:00]} c5 {[%emt 0:09:55]} 2. c4 {[%emt 0:00:03]} e6 {[%emt 0:00:08]} 3. Nc3 {[%emt 0:01:23]} d6 {[%emt 0:00:13]} 4. d4 {[%emt 0:00:37]} cxd4 {[%emt 0:00:08]} 5. Nxd4 {[%emt 0:00:19]} a6 {[%emt 0:00:06]} 6. e4 {[%emt 0:00:58]} Nf6 {[%emt 0:00:09]} 7. f4 {[%emt 0:00:32]} Qc7 {[%emt 0:00:19]} 8. Be3 {[%emt 0:00:43]} Nbd7 {[%emt 0:00:14]} 9. Rc1 {[%emt 0:01:50]} Be7 {[%emt 0:00:51]} 10. Be2 {[%emt 0:00:58]} O-O {[%emt 0:02:32]} 11. g4 {[%emt 0:05:32]} Rd8 {[%emt 0:05:40]} 12. g5 {[%emt 0:01:22]} Ne8 {[%emt 0:00:02]} 13. h4 {[%emt 0:02:28]} Bf8 {[%emt 0:03:19]} 14. h5 {[%emt 0:02:33]} e5 {[%emt 0:10:23]} 15. Nd5 {[%emt 0:04:14]} Qb8 {[%emt 0:06:55]} 16. Nf5 {[%emt 0:03:45]} Nc5 {[%emt 0:03:28]} 17. Nfe7+ {[%emt 0:06:22]} Bxe7 {[%emt 0:00:03]} 18. Bxc5 {[%emt 0:00:49]} Bf8 {[%emt 0:02:36]} 19. Bb6 {[%emt 0:00:44]} Rd7 {[%emt 0:02:06]} 20. Bg4 {[%emt 0:03:49]} exf4 {[%emt 0:01:36]} 21. Bxd7 {[%emt 0:00:45]} Bxd7 {[%emt 0:00:03]} 22. h6 {[%emt 0:04:21]} g6 {[%emt 0:03:59]} 23. Qf3 {[%emt 0:05:19]} Bc6 {[%emt 0:01:43]} 24. Qxf4 {[%emt 0:00:12]} Qc8 {[%emt 0:00:01]} 25. O-O {[%emt 0:00:32]} Qe6 {[%emt 0:01:06]} 26. Rc2 {[%emt 0:03:55]} f6 {[%emt 0:09:54]} 27. Rcf2 {[%emt 0:04:07]} Rc8 {[%emt 0:03:21]} 28. Bd4 {[%emt 0:01:47]} b5 {[%emt 0:10:28]} 29. Bxf6 {[%emt 0:02:39]} Nc7 {[%emt 0:10:54]} 30. Bd4 {[%emt 0:02:10]} 1-0

[Event "28th WSCC Open 65 2018"]
[Site "Bled"]
[Date "2018.11.18"]
[Round "1"]
[White "Birnboim, Nathan"]
[Black "Grahn, Lars"]
[Result "1-0"]
[ECO "A88"]
[WhiteElo "2376"]
[BlackElo "1999"]
[Annotator "NA"]
[PlyCount "59"]
[EventDate "2018.11.17"]
[EventType "swiss"]
[EventCountry "SLO"]
[SourceTitle "playchess.com"]
[Source "ChessBase"]
[SourceQuality "1"]
[TimeControl "40/5400+30:1800+30"]

1. d4 f5 2. c4 Nf6 3. g3 g6 4. Bg2 Bg7 5. Nf3 O-O 6. O-O d6 7. Nc3 c6 8. Qc2 Na6 9. Re1 {A88: Dutch Defence: Leningrad System: 5 Nf3 0-0 6 0-0 d6 7 Nc3 c6} Re8 10. Bf4 $146 ({Predecessor:} 10. Bg5 e5 11. dxe5 dxe5 12. Rad1 Qe7 13. e4 Nc5 14. Qc1 Qf8 15. Nh4 Nfxe4 16. Bxe4 fxe4 17. Nxe4 {1-0 (47) Adly,A (2593)-Anton Guijarro,D (2676) Sharjah 2017}) 10... Nh5 11. Bg5 h6 $1 12. Bd2 e5 13. dxe5 dxe5 14. Rad1 Qc7 15. e4 f4 16. Nh4 Qf7 17. Bf3 g5 18. Nf5 Bf8 19. Na4 Nf6 20. c5 g4 (20... Bxf5 $11 21. exf5 e4) 21. Be2 f3 22. Bf1 Nxe4 23. Bc4 Be6 24. Bxe6 Rxe6 25. Qxe4 Qh5 26. Ne3 Rg6 27. Bc3 Re8 28. Rd7 Ree6 29. b4 Qh3 $18 30. Qc4 1-0

[Event "28th WSCC Open 65 2018"]
[Site "Bled"]
[Date "2018.11.18"]
[Round "1"]
[White "Skok, Joze"]
[Black "Rashkovsky, Nukhim N"]
[Result "0-1"]
[ECO "B23"]
[WhiteElo "2004"]
[BlackElo "2482"]
[Annotator "ChessBase"]
[PlyCount "70"]
[EventDate "2018.11.17"]
[EventType "swiss"]
[EventCountry "SLO"]
[SourceTitle "playchess.com"]
[Source "ChessBase"]
[SourceQuality "1"]
[TimeControl "40/5400+30:1800+30"]

1. e4 {[%emt 0:00:00]} c5 {[%emt 0:00:00]} 2. Nc3 {[%emt 0:00:00]} a6 {[%emt 0:00:22]} 3. a4 {[%emt 0:00:44]} Nc6 {[%emt 0:00:35]} 4. g3 {[%emt 0:00:20]} g6 {[%emt 0:02:29]} 5. Bg2 {[%emt 0:02:20]} Bg7 {[%emt 0:00:10]} 6. Nge2 {[%emt 0:00:26]} e6 {[%emt 0:00:58]} 7. d3 {[%emt 0:01:21]} Nge7 {[%emt 0:00:12]} 8. Be3 {[%emt 0:00:32]} Nd4 {[%emt 0:00:12]} 9. Qd2 {[%emt 0:01:04]} Nec6 {[%emt 0:00:47]} 10. O-O {[%emt 0:00:58]} O-O {[%emt 0:01:13]} 11. f4 {[%emt 0:01:29]} d6 {[%emt 0:01:38]} 12. Nd1 {[%emt 0:07:58]} Rb8 {[%emt 0:01:45]} 13. Rb1 {[%emt 0:03:56]} b5 {[%emt 0:02:30]} 14. axb5 {[%emt 0:01:34]} axb5 {[%emt 0:00:02]} 15. Kh1 {[%emt 0:08:18]} b4 {[%emt 0:06:26]} 16. b3 {[%emt 0:05:27]} Ra8 {[%emt 0:00:47]} 17. Nxd4 {[%emt 0:07:58]} cxd4 {[%emt 0:13:19]} 18. Bf2 {[%emt 0:03:40]} Ra2 {[%emt 0:01:33]} 19. Nb2 {[%emt 0:05:01]} d5 {[%emt 0:01:09]} 20. Ra1 {[%emt 0:03:51]} Ra3 {[%emt 0:06:50]} 21. Na4 {[%emt 0:04:46]} Rxa1 {[%emt 0:03:57]} 22. Rxa1 {[%emt 0:00:19]} dxe4 {[%emt 0:00:37]} 23. Bxe4 {[%emt 0:01:11]} Qc7 {[%emt 0:01:29]} 24. Kg1 {[%emt 0:03:50]} e5 {[%emt 0:02:01]} 25. fxe5 {[%emt 0:02:57]} Nxe5 {[%emt 0:04:54]} 26. Kg2 {[%emt 0:11:12]} Ng4 {[%emt 0:04:04]} 27. Rf1 {[%emt 0:04:21]} h5 {[%emt 0:17:55]} 28. Bg1 {[%emt 0:05:09]} Ne3+ {[%emt 0:03:02]} 29. Bxe3 {[%emt 0:00:28]} dxe3 {[%emt 0:00:02]} 30. Qe2 {[%emt 0:00:59]} Bd4 {[%emt 0:00:31]} 31. h3 {[%emt 0:03:08]} Be6 {[%emt 0:02:07]} 32. Rc1 {[%emt 0:02:07]} Bxb3 {[%emt 0:01:07]} 33. Rb1 {[%emt 0:01:06]} Qxc2 {[%emt 0:00:43]} 34. Qxc2 {[%emt 0:00:18]} Bxc2 {[%emt 0:00:01]} 35. Rxb4 {[%emt 0:00:07]} e2 {[%emt 0:00:12]} 0-1

[Event "28th WSCC Open 65 2018"]
[Site "Bled"]
[Date "2018.11.18"]
[Round "1"]
[White "Hewson, Brian W R"]
[Black "Jansa, Vlastimil"]
[Result "0-1"]
[ECO "A49"]
[WhiteElo "2000"]
[BlackElo "2437"]
[Annotator "ChessBase"]
[PlyCount "56"]
[EventDate "2018.11.17"]
[EventType "swiss"]
[EventCountry "SLO"]
[SourceTitle "playchess.com"]
[Source "ChessBase"]
[SourceQuality "1"]
[TimeControl "40/5400+30:1800+30"]

1. d4 {[%emt 0:00:00]} Nf6 {[%emt 0:00:00]} 2. Nf3 {[%emt 0:00:00]} g6 {[%emt 0:00:00]} 3. g3 {[%emt 0:00:40]} Bg7 {[%emt 0:00:06]} 4. Bg2 {[%emt 0:00:17]} d5 {[%emt 0:00:12]} 5. c4 {[%emt 0:00:34]} dxc4 {[%emt 0:00:11]} 6. O-O {[%emt 0:06:00]} O-O {[%emt 0:01:11]} 7. Na3 {[%emt 0:01:05]} Nc6 {[%emt 0:01:19]} 8. Nxc4 {[%emt 0:01:00]} Be6 {[%emt 0:00:15]} 9. Nce5 {[%emt 0:04:20]} Nxe5 {[%emt 0:03:06]} 10. Nxe5 {[%emt 0:01:42]} c6 {[%emt 0:01:28]} 11. e4 {[%emt 0:05:57]} Qb6 {[%emt 0:21:33]} 12. Qa4 {[%emt 0:06:59]} a5 {[%emt 0:08:49]} 13. Nd3 {[%emt 0:25:07]} Rfd8 {[%emt 0:05:20]} 14. Nc5 {[%emt 0:08:54]} Bc8 {[%emt 0:00:42]} 15. Qc4 {[%emt 0:16:33]} Qb4 {[%emt 0:08:41]} 16. Qxb4 {[%emt 0:00:45]} axb4 {[%emt 0:00:05]} 17. Be3 {[%emt 0:00:46]} Ng4 {[%emt 0:15:10]} 18. Rfd1 {[%emt 0:01:11]} b6 {[%emt 0:05:12]} 19. Nb3 {[%emt 0:08:23]} Be6 {[%emt 0:03:56]} 20. d5 {[%emt 0:03:46]} Nxe3 {[%emt 0:00:19]} 21. fxe3 {[%emt 0:00:06]} Bg4 {[%emt 0:00:24]} 22. Rd2 {[%emt 0:00:22]} c5 {[%emt 0:00:27]} 23. h3 {[%emt 0:00:19]} Bd7 {[%emt 0:02:36]} 24. Bf1 {[%emt 0:01:37]} Be5 {[%emt 0:00:42]} 25. Kg2 {[%emt 0:00:10]} Rdc8 {[%emt 0:01:26]} 26. Rc2 {[%emt 0:02:38]} Ra7 {[%emt 0:01:16]} 27. Nd2 {[%emt 0:01:48]} Ba4 {[%emt 0:01:36]} 28. Nc4 {[%emt 0:01:19]} Bxc2 {[%emt 0:00:12]} 0-1

[Event "28th WSCC Open 65 2018"]
[Site "Bled"]
[Date "2018.11.22"]
[Round "5"]
[White "Iudicello, Giovanni"]
[Black "Barle, Janez"]
[Result "0-1"]
[ECO "A04"]
[WhiteElo "2138"]
[BlackElo "2259"]
[Annotator "NA RC"]
[PlyCount "88"]
[EventDate "2018.11.17"]
[EventType "swiss"]
[EventCountry "SLO"]
[SourceTitle "playchess.com"]
[Source "ChessBase"]
[SourceQuality "1"]
[TimeControl "40/5400+30:1800+30"]

1. Nf3 {[%emt 0:00:00]} Nc6 {[%emt 0:00:30]} 2. g3 {[%emt 0:00:53]} d5 {[%emt 0:02:22]} 3. Bg2 {[%emt 0:01:14]} Nf6 {[%emt 0:03:37]} 4. d3 {[%emt 0:00:30]} e5 {[%emt 0:00:26]} 5. O-O {[%emt 0:00:34]} Be7 {[%emt 0:00:34]} 6. e4 {[%emt 0:16:25] A07: Réti Opening: New York and Capablanca Systems} (6. c4 O-O 7. cxd5 Nxd5 8. Nc3 Nb6 9. Be3 Re8 10. Rc1 Bf8 11. Na4 Nd4 12. Nc5 c6 13. Nb3 Nxb3 14. Qxb3 Be6 15. Qc2 Nd5 16. Bd2 f6 17. a3 a5 18. e4 Nc7 19. Be3 Nb5 20. Rfd1 {1-0 (36) Nakamura,H (2786)-Grigoriants,S (2576) chess.com INT 2017}) 6... dxe4 {[%emt 0:18:15]} 7. dxe4 {[%emt 0:00:30]} Bg4 {[%emt 0:05:53]} 8. Qxd8+ $146 {[%emt 0:15:14]} ({Predecessor:} 8. Nbd2 Qd7 9. c3 Bh3 10. Qb3 Bxg2 11. Kxg2 O-O-O 12. Qc2 h5 13. h4 Nh7 {0-1 (37) Pan,S-Xiao,Y (2226) Zhongshan 2015}) 8... Rxd8 {[%emt 0:00:22]} 9. Nbd2 {[%emt 0:09:52]} Nb4 {[%emt 0:12:48]} 10. c3 {[%emt 0:01:19]} Nd3 {[%emt 0:04:08]} 11. Nc4 {[%emt 0:13:04]} Bxf3 {[%emt 0:23:15]} ({Much worse is} 11... Nxe4 $6 12. Nfxe5 {[%mdl 64] Discovered Attack} Nexf2 13. Rxf2 $14) 12. Bxf3 {[%emt 0:00:11]} b5 {[%emt 0:00:31] [#]} 13. Ne3 {[%emt 0:07:13]} ({White should try} 13. Na5 $1 $16) 13... Bc5 {[%emt 0:00:24]} 14. Nc2 {[%emt 0:03:14]} ({White should try} 14. b4 $14 Bb6 15. a4) 14... Nxc1 {[%emt 0:01:31]} 15. Raxc1 {[%emt 0:00:05]} Rd2 {[%emt 0:00:10]} 16. Nb4 {[%emt 0:06:03]} Bb6 {[%emt 0:06:51]} 17. Rc2 {[%emt 0:00:28]} Rd6 {[%emt 0:00:22]} 18. Re2 {[%emt 0:00:59]} c6 {[%emt 0:00:29]} 19. Nc2 {[%emt 0:00:41]} Ke7 {[%emt 0:00:27]} 20. Rfe1 {[%emt 0:01:34]} Rhd8 {[%emt 0:00:24]} 21. Ne3 {[%emt 0:01:13]} g6 {[%emt 0:00:31]} 22. Kg2 {[%emt 0:00:42]} Rd3 {[%emt 0:01:02]} 23. Ng4 {[%emt 0:02:15] [#]} Nd7 $1 {[%emt 0:00:11]} 24. Rc2 {[%emt 0:02:46]} f6 {[%emt 0:01:36]} 25. Be2 {[%emt 0:02:46]} Rd6 {[%emt 0:00:19]} 26. f3 {[%emt 0:00:50]} Nc5 {[%emt 0:00:44]} 27. Nf2 {[%emt 0:03:08]} Rd2 {[%emt 0:00:35]} 28. Rec1 {[%emt 0:01:48]} Ne6 {[%emt 0:00:33]} 29. Nd1 {[%emt 0:01:24]} h5 {[%emt 0:01:24]} 30. Kf1 {[%emt 0:00:08]} h4 {[%emt 0:00:42]} 31. Ke1 {[%emt 0:02:43]} hxg3 {[%emt 0:03:36]} 32. hxg3 {[%emt 0:00:15]} R2d7 {[%emt 0:00:44]} 33. Bf1 {[%emt 0:03:28]} Rh8 {[%emt 0:01:17]} 34. Bg2 {[%emt 0:00:32]} Rh2 {[%emt 0:01:57]} 35. Kf1 {[%emt 0:00:37]} Ng7 {[%emt 0:01:06]} 36. Nf2 {[%emt 0:00:45]} Rd8 {[%emt 0:01:46]} 37. Rd1 {[%emt 0:01:32]} Rxd1+ {[%emt 0:00:53]} 38. Nxd1 {[%emt 0:00:04]} Nh5 {[%emt 0:00:13]} 39. g4 {[%emt 0:00:24]} Nf4 {[%emt 0:01:12]} 40. Rd2 {[%emt 0:00:00]} Ke6 {[%emt 0:00:00]} 41. b3 {[%emt 0:04:56]} Kf7 {[%emt 0:04:07]} 42. c4 $19 {[%emt 0:09:16]} bxc4 {[%emt 0:06:11]} 43. bxc4 {[%emt 0:00:42]} Bd4 {[%emt 0:00:31]} 44. Nb2 {[%emt 0:02:06]} Rxg2 {[%emt 0:00:31]} 0-1

[Event "28th WSCC Open 65 2018"]
[Site "Bled"]
[Date "2018.11.25"]
[Round "7"]
[White "Vaisser, Anatoli"]
[Black "Ackermann, Hans Werner"]
[Result "1-0"]
[ECO "B07"]
[WhiteElo "2504"]
[BlackElo "2272"]
[Annotator "ChessBase"]
[PlyCount "69"]
[EventDate "2018.11.17"]
[EventType "swiss"]
[EventCountry "SLO"]
[SourceTitle "playchess.com"]
[Source "ChessBase"]
[SourceQuality "1"]
[TimeControl "40/5400+30:1800+30"]

1. d4 d6 2. e4 Nf6 3. Nc3 e5 4. dxe5 dxe5 5. Qxd8+ Kxd8 6. Bc4 Bb4 7. Bxf7 Nxe4 8. Nge2 Rf8 9. Bb3 Bf5 10. Be3 Nd7 11. O-O-O Nxc3 12. bxc3 Bd6 13. Ng3 Bg6 14. h4 Bf7 15. Ne4 Bxb3 16. cxb3 Ke7 17. Bg5+ Ke6 18. Rd2 h6 19. Nxd6 cxd6 20. Rhd1 Nc5 21. Rxd6+ Kf5 22. Be3 Ne4 23. Rd7 Nxc3 24. R1d2 Rac8 25. Kb2 g5 26. hxg5 hxg5 27. Rxb7 a5 28. a4 g4 29. Rg7 Ne4 30. Rd5 Rcd8 31. Rxa5 Nxf2 32. Rg5+ Ke4 33. Raxe5+ Kd3 34. Bc5 Rf7 35. Ka3 1-0

[Event "28th WSCC Open 65 2018"]
[Site "Bled"]
[Date "2018.11.25"]
[Round "7"]
[White "Birnboim, Nathan"]
[Black "Giffard, Nicolas"]
[Result "1-0"]
[ECO "A53"]
[WhiteElo "2376"]
[BlackElo "2249"]
[Annotator "NA"]
[PlyCount "83"]
[EventDate "2018.11.17"]
[EventType "swiss"]
[EventCountry "SLO"]
[SourceTitle "playchess.com"]
[Source "ChessBase"]
[SourceQuality "1"]
[TimeControl "40/5400+30:1800+30"]

1. e4 c6 2. c4 e5 3. Nf3 d6 4. d4 Bg4 5. Be2 Bxf3 6. Bxf3 Be7 7. O-O Nf6 8. Nc3 O-O 9. Be3 Nbd7 10. d5 c5 11. a3 Ne8 12. Qd2 g6 13. Bh6 Ng7 14. Bg4 Nf6 15. Bh3 Kh8 16. b4 b6 17. Rab1 Ng8 18. Bxg7+ Kxg7 19. bxc5 bxc5 20. Rb7 Bg5 21. Qc2 Nf6 22. Rfb1 Kg8 23. Nb5 a6 24. Nc7 Rb8 25. Rxb8 Qxc7 26. R8b6 Ra8 27. g3 h5 28. Kf1 Ra7 29. f3 h4 30. Qa4 hxg3 31. hxg3 Nh5 32. Qe8+ Kh7 33. Kf2 Bh6 34. Qc6 Qe7 35. Bg4 Qg5 36. Bxh5 Qe3+ 37. Kg2 Qe2+ 38. Kh3 gxh5 39. Qxd6 Bg7 40. R6b3 Qxc4 41. Qd8 f6 42. Qe8 1-0

[Event "28th WSCC Open 65 2018"]
[Site "Bled"]
[Date "2018.11.25"]
[Round "7"]
[White "Vogt, Lothar"]
[Black "Nukin, Tolegen"]
[Result "1/2-1/2"]
[ECO "B42"]
[WhiteElo "2359"]
[BlackElo "2171"]
[Annotator "NA"]
[PlyCount "59"]
[EventDate "2018.11.17"]
[EventType "swiss"]
[EventCountry "SLO"]
[SourceTitle "playchess.com"]
[Source "ChessBase"]
[SourceQuality "1"]
[TimeControl "40/5400+30:1800+30"]

1. e4 c5 2. Nf3 e6 3. d4 cxd4 4. Nxd4 a6 5. Bd3 Nf6 6. O-O d6 7. c4 b6 8. Nc3 Bb7 9. f4 Nbd7 10. Qe2 Rc8 11. Kh1 Qc7 12. Bd2 Be7 13. Rae1 O-O 14. b3 Rfd8 15. Nf3 Bf8 16. e5 Bxf3 17. Rxf3 Ne8 18. Bxh7+ Kxh7 19. Rh3+ Kg8 20. Qh5 f6 21. f5 Nc5 22. Qh7+ Kf7 23. Qg6+ Kg8 24. fxe6 Nxe6 25. exf6 Nxf6 26. Nd5 Nxd5 27. Qxe6+ Qf7 28. Rh8+ Kxh8 29. Qxf7 Nf6 30. Re3 1/2-1/2

[Event "28th WSCC Open 65 2018"]
[Site "Bled"]
[Date "2018.11.25"]
[Round "7"]
[White "Renman, Nils-Gustaf"]
[Black "Rashkovsky, Nukhim N"]
[Result "0-1"]
[ECO "E11"]
[WhiteElo "2351"]
[BlackElo "2482"]
[Annotator "ChessBase"]
[PlyCount "60"]
[EventDate "2018.11.17"]
[EventType "swiss"]
[EventCountry "SLO"]
[SourceTitle "playchess.com"]
[Source "ChessBase"]
[SourceQuality "1"]
[TimeControl "40/5400+30:1800+30"]

1. d4 Nf6 2. Nf3 e6 3. c4 Bb4+ 4. Bd2 Qe7 5. g3 Bxd2+ 6. Qxd2 Nc6 7. Nc3 d5 8. cxd5 exd5 9. Bg2 Bg4 10. O-O O-O-O 11. e3 h5 12. b4 Ne4 13. Qb2 Bxf3 14. Bxf3 f5 15. a3 h4 16. Nxe4 dxe4 17. Bd1 Qg5 18. Qe2 hxg3 19. fxg3 Rh3 20. Rf2 Rdh8 21. Rg2 Ne7 22. Bb3 Kb8 23. Qf2 Nc8 24. Rf1 Nd6 25. Qf4 Qf6 26. g4 fxg4 27. Qxg4 Qh6 28. Rg3 Rxh2 29. Qxg7 Rh1+ 30. Kf2 Qxg7 {Kg1} 0-1

[Event "28th WSCC Open 65 2018"]
[Site "Bled"]
[Date "2018.11.25"]
[Round "7"]
[White "Shirazi, Kamran"]
[Black "Srebrnic, Vojko"]
[Result "1/2-1/2"]
[ECO "A05"]
[WhiteElo "2333"]
[BlackElo "2140"]
[Annotator "NA"]
[PlyCount "147"]
[EventDate "2018.11.17"]
[EventType "swiss"]
[EventCountry "SLO"]
[SourceTitle "playchess.com"]
[Source "ChessBase"]
[SourceQuality "1"]
[TimeControl "40/5400+30:1800+30"]

1. Nf3 Nf6 2. g3 g6 3. Bg2 Bg7 4. d3 d6 5. e4 {A05: Réti Opening: 1 Nf3 Nf6} c5 6. e5 dxe5 7. Nxe5 O-O 8. O-O Nbd7 9. Nf3 $146 ({Predecessor:} 9. Nc4 Nb6 10. a4 Nbd5 11. Nbd2 Bg4 12. Nf3 Qc8 13. Re1 Rd8 14. Bd2 Bh3 {1-0 (50) Zvjaginsev,V (2643)-Seliverstov,V (2464) Moscow 2017}) 9... Nb6 10. a4 Nbd5 11. Re1 Nb4 12. Ne5 Nd7 13. Nc4 Nb6 14. Na5 N6d5 15. Nb3 Na6 16. Na3 e6 17. c3 Bd7 18. Nc4 Qc7 19. h4 Rad8 20. Qe2 Bc8 21. h5 Nb8 22. Ne3 Nxe3 23. Bxe3 Na6 24. d4 cxd4 25. Nxd4 b6 26. a5 Nc5 27. h6 Bh8 28. axb6 axb6 29. Bf4 e5 30. Bxe5 Bxe5 31. Qxe5 Qxe5 32. Rxe5 Nd3 33. Re3 Nxb2 34. Nc6 Rd1+ 35. Rxd1 Nxd1 36. Rd3 Nb2 37. Ne7+ Kh8 38. Rd6 Nc4 39. Rc6 Be6 40. Bd5 Ne5 41. Rxb6 Bxd5 42. Nxd5 Ng4 43. c4 Nxh6 44. c5 Rd8 45. Ne3 Nf5 46. Nxf5 gxf5 47. Rd6 Ra8 48. Rd5 Ra3 49. Rxf5 Kg7 50. Kg2 Rc3 51. g4 h6 52. f3 f6 53. Kg3 Kf7 54. Kf4 Ke6 55. Ke4 Rc1 56. Kd4 Rd1+ 57. Kc4 Rf1 58. Kb5 h5 59. c6 Rb1+ {[#]} 60. Kc5 $2 ({White has to play} 60. Ka6 $1 $18) 60... Rc1+ 61. Kb6 h4 62. c7 ({White should play} 62. Kc7 $16) 62... h3 $1 63. Rh5 Kd6 $1 64. Rxh3 Rc6+ 65. Kb5 Rxc7 66. Rh5 Rc3 67. Rf5 Ke6 68. Kb4 Rc1 69. Rf4 Rc2 70. Re4+ Kf7 71. Rc4 Rf2 72. f4 Kg6 73. Kc5 Rg2 74. g5 $11 1/2-1/2

[Event "28th WSCC Open 65 2018"]
[Site "Bled"]
[Date "2018.11.25"]
[Round "7"]
[White "Pushkov, Nikolai"]
[Black "Van Oosten, Arend"]
[Result "1-0"]
[ECO "A25"]
[WhiteElo "2324"]
[BlackElo "2137"]
[Annotator "NA"]
[PlyCount "121"]
[EventDate "2018.11.17"]
[EventType "swiss"]
[EventCountry "SLO"]
[SourceTitle "playchess.com"]
[Source "ChessBase"]
[SourceQuality "1"]
[TimeControl "40/5400+30:1800+30"]

1. c4 e5 2. Nc3 Nc6 3. g3 g6 4. Bg2 Bg7 5. d3 d6 6. Rb1 Be6 7. b4 Qd7 8. b5 Nd8 9. Nf3 {A25: English Opening vs King's Indian with ...Nc6 but without early d3} (9. a4 Ne7 10. Nd5 O-O 11. a5 a6 12. b6 c6 13. Nc7 Rc8 14. Ba3 f5 15. Nf3 h6 16. O-O Bf7 17. c5 {0-1 (41) Venkatesh,M (2509)-Short,N (2697) Bangkok 2012}) 9... Bh3 10. O-O Bxg2 11. Kxg2 Ne7 12. e4 O-O 13. d4 exd4 14. Nxd4 Ne6 15. Be3 Nc5 $146 ({Predecessor:} 15... a6 16. bxa6 b6 17. Nd5 Rxa6 18. Nxe6 fxe6 {0-1 (71) Gomez Jurado,L (2312)-Sundararajan,K (2427) Montcada 2015}) 16. Qc2 f5 17. exf5 Nxf5 18. Nxf5 Rxf5 19. Nd5 c6 20. bxc6 bxc6 21. Nf4 Raf8 22. h3 Be5 23. Ne2 Ne6 24. f4 Bg7 25. Ng1 d5 26. cxd5 cxd5 27. Nf3 d4 28. Rfd1 Rd5 29. Qb3 Kh8 30. Qb7 Rd8 31. Qxd7 R5xd7 32. Bd2 d3 33. Rb5 Kg8 34. Ne5 Bxe5 35. Rxe5 Kf7 36. f5 gxf5 37. Rxf5+ Kg8 38. Re5 Nf8 39. Rg5+ Ng6 40. h4 Rd5 41. h5 Rxg5 42. Bxg5 Rd5 43. hxg6 Rxg5 44. gxh7+ Kxh7 45. Rxd3 Ra5 46. a3 Kg6 47. Kf3 Kf5 48. Re3 Rb5 49. Ke2 Kg4 50. Kd2 Rb2+ 51. Kc3 Rb1 52. Kc4 Rb2 53. a4 Rb1 54. a5 Rb2 55. Re7 Kxg3 56. Rxa7 Kf4 57. Re7 Kf5 58. a6 Kf6 $18 59. Rb7 Ra2 60. a7 Ke6 61. Kc5 {Kd5} 1-0

[Event "28th WSCC Open 65 2018"]
[Site "Bled"]
[Date "2018.11.25"]
[Round "7"]
[White "Buchal, Stephan"]
[Black "Frick, Christoph"]
[Result "0-1"]
[ECO "B12"]
[WhiteElo "2288"]
[BlackElo "2186"]
[Annotator "ChessBase"]
[PlyCount "116"]
[EventDate "2018.11.17"]
[EventType "swiss"]
[EventCountry "SLO"]
[SourceTitle "playchess.com"]
[Source "ChessBase"]
[SourceQuality "1"]
[TimeControl "40/5400+30:1800+30"]

1. e4 c6 2. d4 d5 3. e5 Bf5 4. Nf3 e6 5. Be2 c5 6. c3 Nc6 7. O-O cxd4 8. Nxd4 Nge7 9. Nxf5 Nxf5 10. Bd3 Bc5 11. Qe2 O-O 12. Nd2 Qh4 13. Nf3 Qh5 14. Bf4 Rae8 15. h3 f6 16. Rae1 g5 17. Bh2 g4 18. Nd2 Nh6 19. b4 Bb6 20. b5 Nxe5 21. Bxe5 fxe5 22. Qxe5 Qxe5 23. Rxe5 Nf7 24. Rh5 g3 25. c4 gxf2+ 26. Kh1 Be3 27. Nf3 dxc4 28. Bxc4 Nd6 29. Bd3 Nf5 30. Bxf5 Rxf5 31. Rxf5 exf5 32. g3 Rc8 33. Kg2 Rc2 34. Nh4 Rxa2 35. Nxf5 Bc5 36. g4 Kf7 37. Rb1 Kf6 38. Rc1 b6 39. Ng3 Ke5 40. Rb1 a5 41. bxa6 Rxa6 42. Rb3 Ra1 43. Nf1 Kd5 44. g5 Ke4 45. Rg3 Kf4 46. g6 hxg6 47. Rxg6 b5 48. h4 b4 49. Rf6+ Ke5 50. Rf3 Ra3 51. Rf7 Ra7 52. Rf3 Rg7+ 53. Ng3 Kd5 54. Kf1 Kc4 55. Ke2 b3 56. Rf4+ Kb5 57. Ne4 Re7 58. Kd3 Rxe4 {Kd4} 0-1

[Event "28th WSCC Open 65 2018"]
[Site "Bled"]
[Date "2018.11.25"]
[Round "7"]
[White "Maryasin, Boris"]
[Black "Leskovar, Mario"]
[Result "1-0"]
[ECO "B15"]
[WhiteElo "2284"]
[BlackElo "2242"]
[Annotator "NA"]
[PlyCount "89"]
[EventDate "2018.11.17"]
[EventType "swiss"]
[EventCountry "SLO"]
[SourceTitle "playchess.com"]
[Source "ChessBase"]
[SourceQuality "1"]
[TimeControl "40/5400+30:1800+30"]

1. e4 g6 2. d4 Bg7 3. Nc3 c6 4. Be3 d5 5. f3 dxe4 6. fxe4 Nf6 7. Nf3 Qb6 8. Qd2 O-O 9. Bc4 Ng4 10. Bg5 e5 11. dxe5 Qc5 12. Bb3 Nxe5 13. Nxe5 Bxe5 14. O-O-O Be6 15. Bh6 Bg7 16. Bxg7 Kxg7 17. Bxe6 fxe6 18. Rhf1 Rxf1 19. Rxf1 Qe7 20. Rd1 Na6 21. Qd7 Re8 22. Qd4+ e5 23. Qxa7 Nc5 24. Kb1 Ne6 25. Qe3 Rd8 26. Rxd8 Qxd8 27. a4 Qa5 28. Qh3 Nf8 29. Qc8 Qb6 30. a5 Qa6 31. Qc7+ Kf6 32. b3 Ne6 33. Qxh7 Qxa5 34. Kb2 b6 35. h4 Qc5 36. g4 Nf4 37. Qd7 g5 38. Qf5+ Ke7 39. Qxg5+ Kd7 40. Qg7+ Kc8 41. h5 Qf2 42. Qg8+ Kd7 43. Qf7+ Kd6 44. Qf6+ Kd7 45. Qf5+ 1-0

[Event "28th WSCC Open 65 2018"]
[Site "Bled"]
[Date "2018.11.25"]
[Round "7"]
[White "Barle, Janez"]
[Black "Kiefer, Gerhard"]
[Result "1/2-1/2"]
[ECO "B30"]
[WhiteElo "2259"]
[BlackElo "2306"]
[Annotator "ChessBase"]
[PlyCount "101"]
[EventDate "2018.11.17"]
[EventType "swiss"]
[EventCountry "SLO"]
[SourceTitle "playchess.com"]
[Source "ChessBase"]
[SourceQuality "1"]
[TimeControl "40/5400+30:1800+30"]

1. e4 c5 2. Nf3 e6 3. Nc3 Nc6 4. Bb5 Nge7 5. O-O a6 6. Bxc6 Nxc6 7. d4 cxd4 8. Nxd4 Qc7 9. Re1 Bd6 10. g3 Nxd4 11. Qxd4 O-O 12. e5 Be7 13. Qg4 f5 14. exf6 Rxf6 15. Nd5 Qc5 16. Nxf6+ Bxf6 17. c3 d6 18. Be3 Qc6 19. Rad1 e5 20. Qb4 d5 21. Qc5 Be6 22. Qxc6 bxc6 23. f3 Rd8 24. Bf4 e4 25. fxe4 Bg4 26. exd5 Bxd1 27. Rxd1 cxd5 28. Be3 Rb8 29. Rd2 Kf7 30. Kf2 Ke6 31. Ke2 h5 32. Kd3 h4 33. Bf4 Rb7 34. g4 Rf7 35. Be3 Be5 36. Re2 Rf3 37. Kd2 Kf6 38. Rg2 h3 39. Re2 Rf1 40. Bf2 Rh1 41. Ke3 Bxh2 42. Kf3 Be5 43. Bh4+ Ke6 44. Re1 Rxe1 45. Bxe1 Kd7 46. b4 Kc6 47. a4 g6 48. Kf2 Kd7 49. Kf3 Kc6 50. Kf2 Kd7 51. Kf3 1/2-1/2